[Event "BLR-ch 1st Stage Men 2020"]
[Site "Minsk"]
[Date "2020.02.01"]
[Round "3.7"]
[White "Vashchilov, Sergey"]
[Black "Lazavik, Denis"]
[Result "1/2-1/2"]
[ECO "C42"]
[WhiteElo "2148"]
[BlackElo "2411"]
[Annotator "NA"]
[PlyCount "61"]
[EventDate "2020.02.01"]
[EventType "swiss"]
[EventCountry "BLR"]
[SourceTitle "playchess.com"]
[Source "ChessBase"]
[SourceQuality "1"]
[TimeControl "40/5400+30:1800+30"]

1. e4 {[%emt 0:01:19]} e5 {[%emt 0:00:13]} 2. Nf3 {[%emt 0:00:30]} Nf6 {[%emt 0:00:53]} 3. Nxe5 {[%emt 0:03:25]} d6 {[%emt 0:00:24]} 4. Nf3 {[%emt 0:00:17]} Nxe4 {[%emt 0:00:14]} 5. Nc3 {[%emt 0:01:01]} Nxc3 {[%emt 0:00:38]} 6. dxc3 {[%emt 0:00:05]} Be7 {[%emt 0:00:52]} 7. Bf4 {[%emt 0:02:02]} Nc6 {[%emt 0:06:19]} 8. Qd2 {[%emt 0:01:52]} Be6 {[%emt 0:03:55]} 9. Bd3 {[%emt 0:03:06]} Qd7 {[%emt 0:12:32]} 10. O-O-O {[%emt 0:02:22]} a6 {[%emt 0:11:36]} 11. a3 {[%emt 0:07:11]} O-O-O {[%emt 0:08:34]} 12. h3 {[%emt 0:02:51]} Bf6 {[%emt 0:03:22]} 13. Bg5 {[%emt 0:05:13]} Bxg5 {[%emt 0:04:22]} 14. Qxg5 {[%emt 0:01:30]} f6 {[%emt 0:00:30]} 15. Qf4 {[%emt 0:00:58]} Kb8 {[%emt 0:07:25]} 16. Rhe1 {[%emt 0:04:16]} Ne5 {[%emt 0:03:31]} 17. Nd4 {[%emt 0:00:45]} Nxd3+ {[%emt 0:01:28]} 18. Rxd3 {[%emt 0:00:41]} Bf7 {[%emt 0:00:39]} 19. Rde3 {[%emt 0:04:10]} Rhe8 {[%emt 0:01:38]} 20. Nf5 {[%emt 0:08:52]} Rxe3 {[%emt 0:01:28]} 21. Rxe3 {[%emt 0:00:25]} Bg6 {[%emt 0:00:33]} 22. Ne7 {[%emt 0:06:59]} Re8 {[%emt 0:02:21]} 23. Nxg6 {[%emt 0:00:47]} hxg6 {[%emt 0:01:14]} 24. Qg4 {[%emt 0:03:25]} Qf7 {[%emt 0:00:55]} 25. Qe2 {[%emt 0:00:51]} Rxe3 {[%emt 0:00:14]} 26. Qxe3 {[%emt 0:00:15]} g5 {[%emt 0:00:34]} 27. b3 {[%emt 0:01:25]} Qd5 {[%emt 0:01:32]} 28. Qe8+ {[%emt 0:01:44]} Ka7 {[%emt 0:00:38]} 29. Qe3+ {[%emt 0:00:17]} Kb8 {[%emt 0:00:27]} 30. Qe8+ {[%emt 0:00:12]} Ka7 {[%emt 0:00:05]} 31. Qe3+ {[%emt 0:00:15]} 1/2-1/2

[Event "BLR-ch 1st Stage Men 2020"]
[Site "Minsk"]
[Date "2020.02.01"]
[Round "4.1"]
[White "Zarubitski, Viachaslau"]
[Black "Tsaruk, Maksim"]
[Result "1/2-1/2"]
[ECO "D02"]
[WhiteElo "2451"]
[BlackElo "2316"]
[Annotator "ChessBase"]
[PlyCount "61"]
[EventDate "2020.02.01"]
[EventType "swiss"]
[EventCountry "BLR"]
[SourceTitle "playchess.com"]
[Source "ChessBase"]
[SourceQuality "1"]
[TimeControl "40/5400+30:1800+30"]

1. d4 {[%emt 0:00:00]} d5 {[%emt 0:00:00]} 2. Nf3 {[%emt 0:00:09]} Nf6 {[%emt 0:00:00]} 3. g3 {[%emt 0:00:04]} c5 {[%emt 0:04:22]} 4. c3 {[%emt 0:01:14]} e6 {[%emt 0:06:09]} 5. Bg2 {[%emt 0:00:05]} Bd6 {[%emt 0:00:33]} 6. O-O {[%emt 0:00:22]} O-O {[%emt 0:00:05]} 7. Bg5 {[%emt 0:01:31]} h6 {[%emt 0:01:29]} 8. Bxf6 {[%emt 0:00:55]} Qxf6 {[%emt 0:00:07]} 9. Nbd2 {[%emt 0:01:55]} cxd4 {[%emt 0:04:42]} 10. Nxd4 {[%emt 0:03:32]} Nc6 {[%emt 0:00:38]} 11. Ne4 {[%emt 0:12:05]} dxe4 {[%emt 0:20:49]} 12. Nxc6 {[%emt 0:00:05]} Bc5 {[%emt 0:03:37]} 13. Nd4 {[%emt 0:05:50]} Qg6 {[%emt 0:01:37]} 14. a4 {[%emt 0:25:12]} f5 {[%emt 0:03:07]} 15. a5 {[%emt 0:08:00]} Kh7 {[%emt 0:12:59]} 16. b4 {[%emt 0:18:06]} Be7 {[%emt 0:00:19]} 17. a6 {[%emt 0:00:47]} bxa6 {[%emt 0:13:17]} 18. Nc6 {[%emt 0:01:16]} Qe8 {[%emt 0:04:20]} 19. Nxe7 {[%emt 0:00:20]} Qxe7 {[%emt 0:00:05]} 20. f3 {[%emt 0:06:09]} exf3 {[%emt 0:00:05]} 21. Bxf3 {[%emt 0:00:13]} Bb7 {[%emt 0:00:05]} 22. Bxb7 {[%emt 0:01:44]} Qxb7 {[%emt 0:00:05]} 23. Qd3 {[%emt 0:01:19]} Rac8 {[%emt 0:08:18]} 24. Qxa6 {[%emt 0:00:38]} Qe4 {[%emt 0:02:19]} 25. Ra3 {[%emt 0:05:11]} Rxc3 {[%emt 0:03:39]} 26. Rxc3 {[%emt 0:00:02]} Qd4+ {[%emt 0:00:07]} 27. Kg2 {[%emt 0:00:52]} Qxc3 {[%emt 0:00:14]} 28. Qxe6 {[%emt 0:00:03]} Qxb4 {[%emt 0:03:23]} 29. Rxf5 {[%emt 0:00:11]} a5 {[%emt 0:03:17]} 30. Rxf8 {[%emt 0:00:41]} Qxf8 {[%emt 0:00:05]} 31. Qd5 {[%emt 0:01:20]} 1/2-1/2

[Event "BLR-ch 1st Stage Men 2020"]
[Site "Minsk"]
[Date "2020.02.01"]
[Round "4.2"]
[White "Pogosian, Manvel"]
[Black "Yezhel, Valiantsin"]
[Result "1/2-1/2"]
[ECO "A89"]
[WhiteElo "2383"]
[BlackElo "2187"]
[Annotator "NA"]
[PlyCount "128"]
[EventDate "2020.02.01"]
[EventType "swiss"]
[EventCountry "BLR"]
[SourceTitle "playchess.com"]
[Source "ChessBase"]
[SourceQuality "1"]
[TimeControl "40/5400+30:1800+30"]

1. d4 {[%emt 0:00:00]} f5 {[%emt 0:00:05]} 2. Nf3 {[%emt 0:00:41]} Nf6 {[%emt 0:00:08]} 3. c4 {[%emt 0:00:16]} d6 {[%emt 0:00:36]} 4. g3 {[%emt 0:00:13]} g6 {[%emt 0:00:06]} 5. Bg2 {[%emt 0:00:06]} Bg7 {[%emt 0:00:04]} 6. O-O {[%emt 0:00:08]} O-O {[%emt 0:00:03]} 7. Nc3 {[%emt 0:00:29]} Nc6 {[%emt 0:01:52]} 8. d5 {[%emt 0:07:14]} Ne5 {[%emt 0:02:04]} 9. Nxe5 {[%emt 0:08:00]} dxe5 {[%emt 0:00:11]} 10. e4 {[%emt 0:02:32]} f4 {[%emt 0:00:29]} 11. gxf4 {[%emt 0:01:32]} exf4 {[%emt 0:00:05]} 12. Bxf4 {[%emt 0:09:08]} Nxe4 {[%emt 0:00:15]} 13. Bg3 {[%emt 0:00:46]} Nxg3 {[%emt 0:03:49]} 14. hxg3 {[%emt 0:00:56]} e6 {[%emt 0:03:07]} 15. Qb3 {[%emt 0:01:45]} exd5 {[%emt 0:00:20]} 16. cxd5 {[%emt 0:00:46]} Kh8 {[%emt 0:00:19]} 17. Rac1 {[%emt 0:00:23]} a6 {[%emt 0:07:16]} 18. Ne4 {[%emt 0:00:52]} b6 {[%emt 0:12:11]} 19. Rfd1 {[%emt 0:17:22]} Bg4 {[%emt 0:00:50]} 20. Rd2 {[%emt 0:00:15]} Ra7 {[%emt 0:07:42]} 21. a4 {[%emt 0:01:07]} a5 {[%emt 0:01:16]} 22. f4 {[%emt 0:03:53]} Bf5 {[%emt 0:01:28]} 23. Rcd1 {[%emt 0:06:58]} Bg4 {[%emt 0:08:28]} 24. Bf3 {[%emt 0:00:23]} Bxf3 {[%emt 0:02:09]} 25. Qxf3 {[%emt 0:00:05]} Qe7 {[%emt 0:04:33]} 26. Kg2 {[%emt 0:02:34]} h6 {[%emt 0:00:08]} 27. Re2 {[%emt 0:06:28]} Qb4 {[%emt 0:01:16]} 28. b3 {[%emt 0:01:40]} Raa8 {[%emt 0:01:05]} 29. d6 {[%emt 0:01:56]} Rad8 {[%emt 0:04:37]} 30. d7 {[%emt 0:03:36]} Bd4 {[%emt 0:00:50]} 31. Qg4 {[%emt 0:02:09]} Kg7 {[%emt 0:00:10]} 32. Rc1 {[%emt 0:06:29]} Qxb3 {[%emt 0:03:51]} 33. Rc6 {[%emt 0:01:34]} Qf7 {[%emt 0:00:14]} 34. Rxc7 {[%emt 0:00:19]} Qd5 {[%emt 0:00:05]} 35. Qf3 {[%emt 0:06:08]} Rxd7 {[%emt 0:00:27]} 36. Rec2 {[%emt 0:02:05]} Rxc7 {[%emt 0:00:33]} 37. Rxc7+ {[%emt 0:00:04]} Rf7 {[%emt 0:00:05]} 38. Rxf7+ {[%emt 0:00:58]} Qxf7 {[%emt 0:00:06]} 39. Nd6 {[%emt 0:02:35]} Qe7 {[%emt 0:06:38]} 40. Nc4 {[%emt 0:00:00]} h5 {[%emt 0:00:00]} 41. Qd3 {[%emt 0:10:58]} Qc5 {[%emt 0:10:14]} 42. Kf1 {[%emt 0:02:16]} Kh6 {[%emt 0:00:55]} 43. Ke2 {[%emt 0:00:49]} Bf6 {[%emt 0:03:39]} 44. Nd2 {[%emt 0:02:07]} Qd4 {[%emt 0:06:50]} 45. Qxd4 {[%emt 0:04:58]} Bxd4 {[%emt 0:00:04]} 46. Kd3 {[%emt 0:00:03]} Bf2 {[%emt 0:00:44]} 47. Ne4 {[%emt 0:00:06]} Bg1 {[%emt 0:00:04]} 48. Kc4 {[%emt 0:00:53]} h4 {[%emt 0:04:24]} 49. gxh4 {[%emt 0:00:14]} Be3 {[%emt 0:01:25]} 50. Kb5 {[%emt 0:02:53]} Kh5 {[%emt 0:00:08]} 51. Nc3 {[%emt 0:01:32]} Bxf4 {[%emt 0:00:45]} 52. Nd5 {[%emt 0:00:13]} Bd2 {[%emt 0:03:36]} 53. Nxb6 {[%emt 0:00:14]} Kxh4 {[%emt 0:00:07]} 54. Nc4 {[%emt 0:00:08]} Bf4 {[%emt 0:11:51]} 55. Kxa5 {[%emt 0:00:33]} g5 {[%emt 0:00:04]} 56. Kb5 {[%emt 0:00:08]} g4 {[%emt 0:00:27]} 57. a5 {[%emt 0:00:07]} g3 {[%emt 0:00:23]} 58. a6 {[%emt 0:00:07]} Bb8 {[%emt 0:01:06]} 59. Ne3 {[%emt 0:03:37]} Kh3 {[%emt 0:07:50]} 60. Kb6 {[%emt 0:03:34]} Bf4 {[%emt 0:00:04]} 61. Nd5 {[%emt 0:00:06]} Be5 {[%emt 0:00:04]} 62. a7 {[%emt 0:00:59]} Bd4+ {[%emt 0:02:22]} 63. Kb7 {[%emt 0:00:01]} Bxa7 {[%emt 0:00:05]} 64. Kxa7 {[%emt 0:00:09]} g2 {[%emt 0:00:08]} 1/2-1/2

[Event "BLR-ch 1st Stage Men 2020"]
[Site "Minsk"]
[Date "2020.02.01"]
[Round "4.3"]
[White "Strybuk, Artsiom I"]
[Black "Teterev, Vitaly"]
[Result "1-0"]
[ECO "E62"]
[WhiteElo "2166"]
[BlackElo "2476"]
[Annotator "ChessBase"]
[PlyCount "75"]
[EventDate "2020.02.01"]
[EventType "swiss"]
[EventCountry "BLR"]
[SourceTitle "playchess.com"]
[Source "ChessBase"]
[SourceQuality "1"]
[TimeControl "40/5400+30:1800+30"]

1. d4 {[%emt 0:01:23]} Nf6 {[%emt 0:00:00]} 2. c4 {[%emt 0:00:48]} g6 {[%emt 0:00:00]} 3. g3 {[%emt 0:00:08]} Bg7 {[%emt 0:01:40]} 4. Bg2 {[%emt 0:00:07]} O-O {[%emt 0:00:09]} 5. Nc3 {[%emt 0:00:05]} d6 {[%emt 0:00:16]} 6. Nf3 {[%emt 0:00:05]} c6 {[%emt 0:00:12]} 7. O-O {[%emt 0:00:06]} Bf5 {[%emt 0:00:07]} 8. Ne1 {[%emt 0:00:05]} Be6 {[%emt 0:01:20]} 9. b3 {[%emt 0:01:11]} d5 {[%emt 0:00:17]} 10. cxd5 {[%emt 0:00:28]} cxd5 {[%emt 0:00:18]} 11. Nd3 {[%emt 0:10:56]} Nc6 {[%emt 0:01:00]} 12. e3 {[%emt 0:05:20]} Bf5 {[%emt 0:03:17]} 13. Bb2 {[%emt 0:01:57]} Rc8 {[%emt 0:02:05]} 14. Rc1 {[%emt 0:09:19]} Qd6 {[%emt 0:16:46]} 15. Qd2 {[%emt 0:04:54]} Rfd8 {[%emt 0:01:37]} 16. Rfd1 {[%emt 0:04:24]} e6 {[%emt 0:25:38]} 17. f3 {[%emt 0:20:10]} g5 {[%emt 0:05:21]} 18. Nf2 {[%emt 0:09:27]} Bg6 {[%emt 0:07:15]} 19. Ne2 {[%emt 0:02:10]} h6 {[%emt 0:06:08]} 20. e4 {[%emt 0:03:00]} Qe7 {[%emt 0:11:03]} 21. e5 {[%emt 0:03:02]} Nh7 {[%emt 0:03:27]} 22. Nc3 {[%emt 0:02:53]} Qb4 {[%emt 0:02:46]} 23. Na4 {[%emt 0:02:09]} Bf8 {[%emt 0:01:03]} 24. Qe3 {[%emt 0:08:05]} Qe7 {[%emt 0:01:46]} 25. Nc3 {[%emt 0:02:00]} Nb4 {[%emt 0:01:08]} 26. Qd2 {[%emt 0:01:38]} Nc6 {[%emt 0:02:39]} 27. Nb5 {[%emt 0:02:40]} Qd7 {[%emt 0:00:50]} 28. Ng4 {[%emt 0:01:25]} h5 {[%emt 0:02:14]} 29. Nf6+ {[%emt 0:01:27]} Nxf6 {[%emt 0:00:03]} 30. exf6 {[%emt 0:00:04]} Nb4 {[%emt 0:03:08]} 31. Bf1 {[%emt 0:01:05]} Nxa2 {[%emt 0:00:32]} 32. Rxc8 {[%emt 0:00:41]} Rxc8 {[%emt 0:00:06]} 33. Qxg5 {[%emt 0:00:12]} Nb4 {[%emt 0:01:10]} 34. Ba3 {[%emt 0:00:49]} a5 {[%emt 0:01:02]} 35. Bd3 {[%emt 0:01:42]} Kh7 {[%emt 0:00:20]} 36. Qxh5+ {[%emt 0:00:38]} Bh6 {[%emt 0:00:01]} 37. Bxb4 {[%emt 0:00:52]} Bxd3 {[%emt 0:00:51]} 38. Bd2 {[%emt 0:00:10]} 1-0

[Event "BLR-ch 1st Stage Men 2020"]
[Site "Minsk"]
[Date "2020.02.01"]
[Round "4.4"]
[White "Siniauski, Artsiom"]
[Black "Meribanov, Vitaly"]
[Result "1-0"]
[ECO "B27"]
[WhiteElo "2265"]
[BlackElo "2417"]
[Annotator "NA"]
[PlyCount "113"]
[EventDate "2020.02.01"]
[EventType "swiss"]
[EventCountry "BLR"]
[SourceTitle "playchess.com"]
[Source "ChessBase"]
[SourceQuality "1"]
[TimeControl "40/5400+30:1800+30"]

1. e4 {[%emt 0:00:00]} c5 {[%emt 0:00:00]} 2. Nf3 {[%emt 0:00:00]} g6 {[%emt 0:00:00]} 3. d4 {[%emt 0:01:25]} cxd4 {[%emt 0:00:31]} 4. Qxd4 {[%emt 0:00:26]} Nf6 {[%emt 0:00:08]} 5. Nc3 {[%emt 0:01:41]} Nc6 {[%emt 0:00:46]} 6. Qa4 {[%emt 0:00:31]} d6 {[%emt 0:02:42]} 7. e5 {[%emt 0:00:58]} dxe5 {[%emt 0:00:02]} 8. Nxe5 {[%emt 0:02:00]} Qd4 {[%emt 0:01:35]} 9. Nxc6 {[%emt 0:01:58]} Qxa4 {[%emt 0:00:04]} 10. Nxa4 {[%emt 0:00:07]} bxc6 {[%emt 0:00:01]} 11. Be3 {[%emt 0:01:51]} Bg7 {[%emt 0:00:30]} 12. O-O-O {[%emt 0:01:13]} O-O {[%emt 0:02:00]} 13. Bc4 {[%emt 0:01:13]} Nd5 {[%emt 0:24:00]} 14. Bc5 {[%emt 0:09:57]} Be6 {[%emt 0:00:27]} 15. Bb3 {[%emt 0:02:59]} Bf6 {[%emt 0:05:15]} 16. Bd4 {[%emt 0:08:18]} Bg5+ {[%emt 0:15:21]} 17. Kb1 {[%emt 0:00:57]} h5 {[%emt 0:01:54]} 18. h4 {[%emt 0:10:59]} Bh6 {[%emt 0:00:42]} 19. Rhe1 {[%emt 0:00:48]} Rfe8 {[%emt 0:02:23]} 20. c4 {[%emt 0:15:44]} Bf5+ {[%emt 0:17:43]} 21. Bc2 {[%emt 0:00:47]} Nf4 {[%emt 0:06:26]} 22. Be3 {[%emt 0:06:51]} Kg7 {[%emt 0:03:18]} 23. g3 {[%emt 0:01:21]} Ne6 {[%emt 0:02:01]} 24. Bxh6+ {[%emt 0:01:28]} Kxh6 {[%emt 0:00:01]} 25. Bxf5 {[%emt 0:00:28]} gxf5 {[%emt 0:00:02]} 26. Re5 {[%emt 0:00:12]} Kg6 {[%emt 0:01:10]} 27. Nc5 {[%emt 0:01:04]} Nf8 {[%emt 0:00:46]} 28. Nd3 {[%emt 0:01:40]} Ne6 {[%emt 0:00:09]} 29. Nc5 {[%emt 0:00:38]} Nf8 {[%emt 0:00:05]} 30. Nd3 {[%emt 0:05:27]} Ne6 {[%emt 0:00:02]} 31. Ra5 {[%emt 0:00:49]} Red8 {[%emt 0:03:05]} 32. Ne5+ {[%emt 0:01:11]} Kf6 {[%emt 0:00:01]} 33. Rxd8 {[%emt 0:00:35]} Nxd8 {[%emt 0:00:02]} 34. f4 {[%emt 0:01:18]} Ke6 {[%emt 0:00:04]} 35. Nf3 {[%emt 0:00:35]} Kf6 {[%emt 0:01:07]} 36. Nd4 {[%emt 0:01:49]} e6 {[%emt 0:00:06]} 37. Ra6 {[%emt 0:00:13]} c5 {[%emt 0:01:17]} 38. Nb5 {[%emt 0:00:23]} Nb7 {[%emt 0:00:33]} 39. Rxa7 {[%emt 0:00:34]} Rxa7 {[%emt 0:00:01]} 40. Nxa7 {[%emt 0:00:00]} Nd6 {[%emt 0:00:00]} 41. Nc6 {[%emt 0:02:58]} Nxc4 {[%emt 0:01:22]} 42. a4 {[%emt 0:03:47]} Kg7 {[%emt 0:00:21]} 43. a5 {[%emt 0:00:26]} Kf8 {[%emt 0:01:34]} 44. b3 {[%emt 0:01:03]} Na3+ {[%emt 0:00:36]} 45. Kb2 {[%emt 0:01:05]} Nb5 {[%emt 0:00:01]} 46. a6 {[%emt 0:00:10]} Nc7 {[%emt 0:01:48]} 47. a7 {[%emt 0:00:19]} Ke8 {[%emt 0:00:14]} 48. Kc3 {[%emt 0:00:16]} Kd7 {[%emt 0:02:00]} 49. Ne5+ {[%emt 0:00:25]} Kd6 {[%emt 0:02:05]} 50. Nxf7+ {[%emt 0:06:39]} Kd5 {[%emt 0:00:02]} 51. Kd3 {[%emt 0:00:22]} Na8 {[%emt 0:00:01]} 52. Ne5 {[%emt 0:00:17]} Nb6 {[%emt 0:00:03]} 53. Nd7 {[%emt 0:00:35]} Na8 {[%emt 0:00:02]} 54. Nf6+ {[%emt 0:00:20]} Kd6 {[%emt 0:00:01]} 55. Nxh5 {[%emt 0:00:18]} Ke7 {[%emt 0:00:06]} 56. Kc4 {[%emt 0:00:14]} Kf7 {[%emt 0:00:08]} 57. Kxc5 {[%emt 0:38:48]} 1-0

[Event "BLR-ch 1st Stage Men 2020"]
[Site "Minsk"]
[Date "2020.02.01"]
[Round "4.5"]
[White "Kuleshov, Konstantin"]
[Black "Podolchenko, Evgeniy"]
[Result "1/2-1/2"]
[ECO "A30"]
[WhiteElo "2076"]
[BlackElo "2394"]
[Annotator "NA"]
[PlyCount "65"]
[EventDate "2020.02.01"]
[EventType "swiss"]
[EventCountry "BLR"]
[SourceTitle "playchess.com"]
[Source "ChessBase"]
[SourceQuality "1"]
[TimeControl "40/5400+30:1800+30"]

1. Nf3 {[%emt 0:00:00]} Nf6 {[%emt 0:00:00]} 2. c4 {[%emt 0:00:00]} c5 {[%emt 0:00:56]} 3. g3 {[%emt 0:00:11]} b6 {[%emt 0:00:04]} 4. Bg2 {[%emt 0:00:06]} Bb7 {[%emt 0:00:03]} 5. O-O {[%emt 0:00:11]} e6 {[%emt 0:00:04]} 6. Nc3 {[%emt 0:00:06]} a6 {[%emt 0:00:07]} 7. Re1 {[%emt 0:00:19]} d6 {[%emt 0:00:16]} 8. e4 {[%emt 0:00:08]} Be7 {[%emt 0:00:04]} 9. d4 {[%emt 0:00:23]} cxd4 {[%emt 0:00:05]} 10. Nxd4 {[%emt 0:00:04]} Qc7 {[%emt 0:00:05]} 11. Be3 {[%emt 0:00:49]} Nbd7 {[%emt 0:00:15]} 12. Rc1 {[%emt 0:00:41]} Rc8 {[%emt 0:00:50]} 13. h3 {[%emt 0:00:39]} Qb8 {[%emt 0:01:37]} 14. b3 {[%emt 0:06:47]} O-O {[%emt 0:01:09]} 15. f4 {[%emt 0:01:31]} Rfe8 {[%emt 0:00:54]} 16. Bf2 {[%emt 0:06:10]} Qa8 {[%emt 0:02:54]} 17. Bf3 {[%emt 0:05:22]} Nc5 {[%emt 0:11:13]} 18. Qe2 {[%emt 0:00:50]} d5 {[%emt 0:01:22]} 19. cxd5 {[%emt 0:16:10]} exd5 {[%emt 0:00:07]} 20. e5 {[%emt 0:05:36]} Nfe4 {[%emt 0:00:50]} 21. Bg4 {[%emt 0:15:11]} Nxb3 {[%emt 0:04:57]} 22. axb3 {[%emt 0:00:50]} Rxc3 {[%emt 0:00:26]} 23. Bd7 {[%emt 0:02:56]} Rd8 {[%emt 0:15:00]} 24. e6 {[%emt 0:03:53]} Rxc1 {[%emt 0:00:29]} 25. Rxc1 {[%emt 0:00:06]} fxe6 {[%emt 0:00:52]} 26. Bxe6+ {[%emt 0:00:43]} Kh8 {[%emt 0:00:06]} 27. Rc7 {[%emt 0:02:43]} Bf6 {[%emt 0:08:09]} 28. Qh5 {[%emt 0:03:27]} Bc8 {[%emt 0:09:58]} 29. Bxd5 {[%emt 0:08:50]} Qxd5 {[%emt 0:00:24]} 30. Qxd5 {[%emt 0:00:05]} Rxd5 {[%emt 0:00:11]} 31. Rxc8+ {[%emt 0:00:08]} Rd8 {[%emt 0:00:17]} 32. Rxd8+ {[%emt 0:00:39]} Bxd8 {[%emt 0:00:02]} 33. Ne6 {[%emt 0:00:22]} 1/2-1/2

[Event "BLR-ch 1st Stage Men 2020"]
[Site "Minsk"]
[Date "2020.02.01"]
[Round "4.7"]
[White "Lazavik, Denis"]
[Black "Sheremet, Anton"]
[Result "1-0"]
[ECO "A81"]
[WhiteElo "2411"]
[BlackElo "2052"]
[Annotator "NA"]
[PlyCount "65"]
[EventDate "2020.02.01"]
[EventType "swiss"]
[EventCountry "BLR"]
[SourceTitle "playchess.com"]
[Source "ChessBase"]
[SourceQuality "1"]
[TimeControl "40/5400+30:1800+30"]

1. d4 {[%emt 0:00:00]} f5 {[%emt 0:00:00]} 2. Nf3 {[%emt 0:00:23]} g6 {[%emt 0:00:01]} 3. g3 {[%emt 0:00:27]} Bg7 {[%emt 0:00:10]} 4. Bg2 {[%emt 0:00:16]} Nf6 {[%emt 0:00:11]} 5. O-O {[%emt 0:00:47]} O-O {[%emt 0:00:12]} 6. b3 {[%emt 0:00:16]} c5 {[%emt 0:00:50]} 7. e3 {[%emt 0:00:43]} Ne4 {[%emt 0:04:25]} 8. Bb2 {[%emt 0:01:44]} Nc6 {[%emt 0:03:24]} 9. c4 {[%emt 0:04:16]} d6 {[%emt 0:00:24]} 10. Nc3 {[%emt 0:03:33]} Nxc3 {[%emt 0:04:19]} 11. Bxc3 {[%emt 0:00:22]} Qc7 {[%emt 0:04:21]} 12. Rc1 {[%emt 0:09:38]} Rd8 {[%emt 0:02:44]} 13. d5 {[%emt 0:17:45]} Bxc3 {[%emt 0:01:14]} 14. Rxc3 {[%emt 0:00:24]} Ne5 {[%emt 0:00:16]} 15. e4 {[%emt 0:01:52]} e6 {[%emt 0:14:19]} 16. Nxe5 {[%emt 0:14:37]} dxe5 {[%emt 0:00:07]} 17. exf5 {[%emt 0:00:23]} exf5 {[%emt 0:00:08]} 18. Re3 {[%emt 0:00:47]} Qd6 {[%emt 0:11:13]} 19. Rfe1 {[%emt 0:03:19]} e4 {[%emt 0:00:14]} 20. f3 {[%emt 0:01:55]} exf3 {[%emt 0:00:06]} 21. Qxf3 {[%emt 0:00:19]} Bd7 {[%emt 0:00:27]} 22. Qf4 {[%emt 0:00:55]} Qxf4 {[%emt 0:01:28]} 23. gxf4 {[%emt 0:00:06]} Re8 {[%emt 0:05:25]} 24. d6 {[%emt 0:06:30]} Rxe3 {[%emt 0:00:33]} 25. Rxe3 {[%emt 0:00:09]} Bc6 {[%emt 0:08:33]} 26. Bxc6 {[%emt 0:02:24]} bxc6 {[%emt 0:00:06]} 27. Re7 {[%emt 0:00:58]} Rd8 {[%emt 0:00:10]} 28. d7 {[%emt 0:00:29]} Kf8 {[%emt 0:00:06]} 29. Rxh7 {[%emt 0:00:06]} Kg8 {[%emt 0:00:03]} 30. Re7 {[%emt 0:00:38]} Kf8 {[%emt 0:00:06]} 31. Re8+ {[%emt 0:02:11]} Rxe8 {[%emt 0:00:06]} 32. dxe8=Q+ {[%emt 0:00:09]} Kxe8 {[%emt 0:00:11]} 33. Kf2 {[%emt 0:00:11]} 1-0

[Event "BLR-ch 1st Stage Men 2020"]
[Site "Minsk"]
[Date "2020.02.01"]
[Round "5.1"]
[White "Yezhel, Valiantsin"]
[Black "Zarubitski, Viachaslau"]
[Result "1/2-1/2"]
[ECO "D19"]
[WhiteElo "2187"]
[BlackElo "2451"]
[Annotator "ChessBase"]
[PlyCount "86"]
[EventDate "2020.02.01"]
[EventType "swiss"]
[EventCountry "BLR"]
[SourceTitle "playchess.com"]
[Source "ChessBase"]
[SourceQuality "1"]
[TimeControl "40/5400+30:1800+30"]

1. d4 {[%emt 0:00:00]} d5 {[%emt 0:00:00]} 2. c4 {[%emt 0:00:14]} c6 {[%emt 0:00:00]} 3. Nc3 {[%emt 0:01:04]} Nf6 {[%emt 0:01:08]} 4. Nf3 {[%emt 0:00:13]} dxc4 {[%emt 0:01:01]} 5. a4 {[%emt 0:00:17]} Bf5 {[%emt 0:00:21]} 6. e3 {[%emt 0:00:45]} e6 {[%emt 0:00:10]} 7. Bxc4 {[%emt 0:00:06]} Bb4 {[%emt 0:00:03]} 8. O-O {[%emt 0:01:46]} Nbd7 {[%emt 0:00:05]} 9. Qe2 {[%emt 0:01:42]} Bg6 {[%emt 0:00:55]} 10. Bd3 {[%emt 0:02:42]} O-O {[%emt 0:00:40]} 11. e4 {[%emt 0:00:14]} Bh5 {[%emt 0:01:58]} 12. e5 {[%emt 0:01:24]} Nd5 {[%emt 0:00:05]} 13. Nxd5 {[%emt 0:00:16]} cxd5 {[%emt 0:00:04]} 14. Qe3 {[%emt 0:00:14]} Be7 {[%emt 0:10:04]} 15. Bd2 {[%emt 0:04:26]} Nb8 {[%emt 0:03:14]} 16. b4 {[%emt 0:14:19]} Bg6 {[%emt 0:01:10]} 17. Bxg6 {[%emt 0:00:14]} hxg6 {[%emt 0:00:40]} 18. b5 {[%emt 0:00:35]} a5 {[%emt 0:08:12]} 19. Qf4 {[%emt 0:11:25]} Nd7 {[%emt 0:02:51]} 20. Qg4 {[%emt 0:00:06]} Re8 {[%emt 0:08:30]} 21. h4 {[%emt 0:14:34]} Rc8 {[%emt 0:09:34]} 22. h5 {[%emt 0:01:22]} Nf8 {[%emt 0:23:31]} 23. g3 {[%emt 0:01:43]} Qc7 {[%emt 0:11:48]} 24. Rac1 {[%emt 0:02:22]} Qd7 {[%emt 0:00:12]} 25. Kg2 {[%emt 0:00:26]} Rxc1 {[%emt 0:01:41]} 26. Rxc1 {[%emt 0:00:04]} Rc8 {[%emt 0:03:50]} 27. Rh1 {[%emt 0:00:10]} Rc4 {[%emt 0:01:47]} 28. hxg6 {[%emt 0:00:40]} fxg6 {[%emt 0:01:08]} 29. Bg5 {[%emt 0:06:11]} Ba3 {[%emt 0:02:43]} 30. Qh4 {[%emt 0:01:52]} Kf7 {[%emt 0:00:19]} 31. Qf4+ {[%emt 0:03:32]} Kg8 {[%emt 0:00:33]} 32. Bd8 {[%emt 0:02:19]} Bc1 {[%emt 0:04:33]} 33. Rxc1 {[%emt 0:04:08]} Rxc1 {[%emt 0:01:09]} 34. Qxc1 {[%emt 0:00:03]} Qxd8 {[%emt 0:00:01]} 35. Qc5 {[%emt 0:00:21]} b6 {[%emt 0:01:11]} 36. Qc6 {[%emt 0:00:42]} g5 {[%emt 0:01:36]} 37. Qd6 {[%emt 0:03:35]} Qxd6 {[%emt 0:00:14]} 38. exd6 {[%emt 0:00:04]} Kf7 {[%emt 0:00:24]} 39. Nxg5+ {[%emt 0:02:14]} Ke8 {[%emt 0:00:32]} 40. f4 {[%emt 0:00:00]} Kd7 {[%emt 0:00:00]} 41. Nf7 {[%emt 0:01:03]} Nh7 {[%emt 0:01:53]} 42. Kf3 {[%emt 0:07:09]} Nf6 {[%emt 0:00:07]} 43. g4 {[%emt 0:00:45]} Ne4 {[%emt 0:00:38]} 1/2-1/2